Workbook

Sheet Лист1
M2: Приложение № 2
M3: к Муниципальному контракту № _________ от "____" _______2022г
B5: УТВЕРЖДАЮ: | K5: СОГЛАСОВАНО:
B6: Директор ООО «Хэлф Фуд» | K6: ________________________________________________________________
K7: _____________________________________________
B8: ____________________/Э.В. Крюкова | K8: __________________ /
C10: Примерное двухнедельное меню для учащихся с 5-11 классы общеобразовательных школ города Актаныш и Актанышского муниципального района в 2022 уч.году Сезон ВЕСНА
B13: № рецептуры | C13: Наименование блюд | F13: Выход | G13: Белки, г | H13: Жиры, г | I13: Углеводы, г | J13: Калорийность, | K13: Витамин В1, мг | L13: Витамин С, мг | M13: Витамин А, мг | N13: Витамин Е, мг | O13: Са, мг | P13: Р, мг | Q13: Mg, мг | R13: Fe, мг
C14: 1-ая неделя
C15: 1 день
B16: 10/2016 | C16: Салат из зеленого горошка с маслом раст. | F16: 50 | G16: 1.48 | H16: 2.46 | I16: 3.13 | J16: 41.8 | K16: 0.06 | L16: 5.5 | M16: 0.01 | N16: 0.03 | O16: 12.87 | P16: 13.4 | Q16: 12.8 | R16: 0.41
B17: ТТК №26 | C17: Котлеты Татарские п/ф с овощами (фасоль стручковая) | F17: 75/25 | G17: 9.180 | H17: 6.060 | I17: 9.420 | J17: 130.98 | K17: 0.060 | L17: 0.430 | M17: 0.020 | N17: 0.230 | O17: 30.830 | P17: 94.760 | Q17: 15.600 | R17: 0.890
B18: 173/2017 | C18: Каша гречневая вязкая | F18: 180/5 | G18: 7.990 | H18: 10.830 | I18: 41.000 | J18: 204 | K18: 0.350 | L18: 0.000 | M18: 0 | N18: 0.621 | O18: 44.800 | P18: 204.700 | Q18: 53.500 | R18: 1.321
B19: ТТК №13 | C19: Чай полусладкий с молоком | F19: 200 | G19: 1.630 | H19: 1.250 | I19: 7.180 | J19: 46 | K19: 0.015 | L19: 0.540 | M19: 0.01 | N19: 0.000 | O19: 76.500 | P19: 48.700 | Q19: 8.800 | R19: 0.430
B20: 1/2017 | C20: Хлеб Ржаной | F20: 30 | G20: 1.5 | H20: 0.3 | I20: 13.50 | J20: 66 | K20: 0.021 | L20: 0.00 | M20: 0.00 | N20: 0.162 | O20: 4.14 | P20: 19.10 | Q20: 4.5 | R20: 0.558
B21: 1/2017 | C21: Хлеб Пшеничный | F21: 50 | G21: 3.800 | H21: 0.400 | I21: 24.600 | J21: 118 | K21: 0.055 | L21: 0 | M21: 0 | N21: 0.550 | O21: 10.000 | P21: 32.500 | Q21: 7.000 | R21: 0.550
E22: Итого | G22: =SUM(G16:G21) -> 25.58 | H22: 21.300 | I22: 98.83 | J22: 607 | K22: 0.561 | L22: 6.47 | M22: 0.04 | N22: 1.593 | O22: 179.14 | P22: 413.16 | Q22: 102.2 | R22: 4.159
C24: 2 день
B25: 41/16 | C25: Салат из моркови припущенной с яблоками | F25: 60 | G25: 0.770 | H25: 3.13 | I25: 6.130 | J25: 49.14 | K25: 0.030 | L25: 4.16 | M25: 0 | N25: 1.64 | O25: 12.7 | P25: 84.6 | Q25: 14.40 | R25: 0.80
B26: 88/2015 | C26: Щи из свежей капусты с картофелемс фрикадельками со сметаной | F26: 250/20/5 | G26: 6.370 | H26: 10.060 | I26: 8.260 | J26: 157.040 | K26: 0.060 | L26: 21.160 | M26: 0.000 | N26: 2.100 | O26: 60.890 | P26: 47.630 | Q26: 23.000 | R26: 1.280
B27: ТТК №1 | C27: Чай полусладкий | F27: 200 | G27: 0.200 | H27: 0.000 | I27: 5.060 | J27: 21.04 | K27: 0.000 | L27: 0.000 | M27: 0.100 | N27: 0.000 | O27: 9.970 | P27: 7.500 | Q27: 6.500 | R27: 0.197
B28: 1/2017 | C28: Хлеб Ржаной | F28: 30 | G28: 1.5 | H28: 0.3 | I28: 13.50 | J28: 66 | K28: 0.021 | L28: 0.00 | M28: 0.00 | N28: 0.162 | O28: 4.14 | P28: 19.10 | Q28: 4.5 | R28: 0.558
B29: 1/2017 | C29: Хлеб Пшеничный | F29: 50 | G29: 3.800 | H29: 0.400 | I29: 24.600 | J29: 118 | K29: 0.055 | L29: 0 | M29: 0 | N29: 0.550 | O29: 10.000 | P29: 32.500 | Q29: 7.000 | R29: 0.550
E30: Итого | G30: =SUM(G25:G29) -> 12.640 | H30: 13.89 | I30: 57.550 | J30: 411.52 | K30: 0.166 | L30: 25.320 | M30: 0.1 | N30: 4.452 | O30: 97.70 | P30: 191.33 | Q30: 55.40 | R30: 3.39
C32: 3 день
B33: 25/04 | C33: Салат "Степной" | F33: 60 | G33: 1.290 | H33: 4.96 | I33: 7.120 | J33: 78.3 | K33: 0.100 | L33: 10.400 | M33: 14.46 | N33: 1.381 | O33: 24.240 | P33: 29.09 | Q33: 14.040 | R33: 0.61
B34: ТТК № 53к | C34: Мякоть птицы тушенная в соусе | F34: 50/50 | G34: 11.650 | H34: 10.756 | I34: 11.632 | J34: 164 | K34: 0.168 | L34: 6.326 | M34: 0.000 | N34: 0.956 | O34: 85.185 | P34: 163.198 | Q34: 15.716 | R34: 1.800
B35: 202/2017 | C35: Макароны отварные с маслом | F35: 180/5 | G35: 6.120 | H35: 5.360 | I35: 34.200 | J35: 224.4 | K35: 0.104 | L35: 0.000 | M35: 0.120 | N35: 0.980 | O35: 19.750 | P35: 68.410 | Q35: 10.170 | R35: 1.043
B36: 686/04 | C36: Чай с лимоном (полусладкий) | F36: 200/10/7 | G36: 0.270 | H36: 0.060 | I36: 15.230 | J36: 63 | K36: 0.003 | L36: 2.800 | M36: 0 | N36: 0.014 | O36: 3.250 | P36: 1.540 | Q36: 0.840 | R36: 0.087
B37: 1/2017 | C37: Хлеб Ржаной | F37: 30 | G37: 1.5 | H37: 0.3 | I37: 13.50 | J37: 66 | K37: 0.021 | L37: 0.00 | M37: 0.00 | N37: 0.162 | O37: 4.14 | P37: 19.10 | Q37: 4.5 | R37: 0.558
B38: 1/2017 | C38: Хлеб Пшеничный | F38: 50 | G38: 3.800 | H38: 0.400 | I38: 24.600 | J38: 118 | K38: 0.055 | L38: 0 | M38: 0 | N38: 0.550 | O38: 10.000 | P38: 32.500 | Q38: 7.000 | R38: 0.550
B39: Пром | C39: Печенье сахарное | F39: 48 | G39: 3.700 | H39: 4.600 | I39: 35.600 | J39: 199.60 | K39: 0.050 | L39: 0 | M39: 5.500 | N39: 1.750 | O39: 15.000 | P39: 42.500 | Q39: 9.600 | R39: 1.000
E40: Итого | G40: =SUM(G33:G39) -> 28.330 | H40: 26.436 | I40: 141.882 | J40: 913.6 | K40: 0.501 | L40: 19.526 | M40: 20.08 | N40: 5.793 | O40: 161.565 | P40: 356.338 | Q40: 61.87 | R40: 5.65
C42: 4 день
B43: 121/2016 | C43: Винегрет Дары осени | F43: 80 | G43: 1.55 | H43: 5.7 | I43: 6.3 | J43: 82.4 | K43: 0.064 | L43: 14.96 | M43: 0 | N43: 0 | O43: 11.64 | P43: 14.12 | Q43: 6.72 | R43: 0
B44: ТТК №22 | C44: Биточки Рябушка п/ф с овощами (мексиканская смесь) | F44: 75/25 | G44: 9.750 | H44: 10.560 | I44: 11.280 | J44: 182.98 | K44: 6.300 | L44: 0.035 | M44: 0.162 | N44: 0.850 | O44: 14.220 | P44: 124.370 | Q44: 26.780 | R44: 1.240
B45: 312/2017 | C45: Картофельное пюре | F45: 180/5 | G45: 3.710 | H45: 9.940 | I45: 26.400 | J45: 206.4 | K45: 0.197 | L45: 9.530 | M45: 0.096 | N45: 0.280 | O45: 57.370 | P45: 118.600 | Q45: 9.600 | R45: 0.000
B46: ТТК №1 | C46: Чай полусладкий | F46: 200 | G46: 0.200 | H46: 0.000 | I46: 5.060 | J46: 21.04 | K46: 0.000 | L46: 0.000 | M46: 0.100 | N46: 0.000 | O46: 9.970 | P46: 7.500 | Q46: 6.500 | R46: 0.197
B47: 1/2017 | C47: Хлеб Ржаной | F47: 30 | G47: 1.5 | H47: 0.3 | I47: 13.50 | J47: 66 | K47: 0.021 | L47: 0.00 | M47: 0.00 | N47: 0.162 | O47: 4.14 | P47: 19.10 | Q47: 4.5 | R47: 0.558
B48: 1/2017 | C48: Хлеб Пшеничный | F48: 50 | G48: 3.800 | H48: 0.400 | I48: 24.600 | J48: 118 | K48: 0.055 | L48: 0 | M48: 0 | N48: 0.550 | O48: 10.000 | P48: 32.500 | Q48: 7.000 | R48: 0.550
B49: 338/2017 | C49: Мандарины свежие | F49: 80 | G49: 0.560 | H49: 0.150 | I49: 15.230 | J49: 64 | K49: 0.040 | L49: 26.60 | M49: 0 | N49: 0.200 | O49: 24.700 | P49: 11.830 | Q49: 7.650 | R49: 0.104
E50: Итого | G50: =SUM(G43:G49) -> 21.07 | H50: 27.05 | I50: 102.37 | J50: 741.12 | K50: 6.677 | L50: 51.125 | M50: 0.358 | N50: 2.042 | O50: 132.040 | P50: 328.02 | Q50: 68.75 | R50: 2.649
C52: 5 день
B53: 12/2014 | C53: Кукуруза консервированная с маслом раст. | F53: 40 | G53: 1.150 | H53: 2.460 | I53: 3.210 | J53: 39.72 | K53: 0.000 | L53: 3.770 | M53: 2.000 | N53: 0.000 | O53: 30.000 | P53: 0.0 | Q53: 13 | R53: 46.000
B54: ТТК №27 | C54: Котлеты Крестьянские п/ф с овощами (фасоль стручковая) | F54: 75/25 | G54: 9.180 | H54: 6.060 | I54: 9.420 | J54: 130.98 | K54: 0.060 | L54: 0.430 | M54: 0.020 | N54: 0.230 | O54: 30.830 | P54: 94.760 | Q54: 15.600 | R54: 0.890
B55: 174/2017 | C55: Каша рисовая вязкая | F55: 180/5 | G55: 2.770 | H55: 5.000 | I55: 27.600 | J55: 166 | K55: 0.020 | L55: 0.000 | M55: 0.000 | N55: 0.220 | O55: 26.310 | P55: 27.600 | Q55: 29.100 | R55: 1.250
B56: ТТК №13 | C56: Чай полусладкий с молоком | F56: 200 | G56: 1.630 | H56: 1.250 | I56: 7.180 | J56: 46 | K56: 0.015 | L56: 0.540 | M56: 0.01 | N56: 0.000 | O56: 76.500 | P56: 48.700 | Q56: 8.800 | R56: 0.430
B57: 1/2017 | C57: Хлеб Ржаной | F57: 30 | G57: 1.5 | H57: 0.3 | I57: 13.50 | J57: 66 | K57: 0.021 | L57: 0.00 | M57: 0.00 | N57: 0.162 | O57: 4.14 | P57: 19.10 | Q57: 4.5 | R57: 0.558
B58: 1/2017 | C58: Хлеб Пшеничный | F58: 50 | G58: 3.800 | H58: 0.400 | I58: 24.600 | J58: 118 | K58: 0.055 | L58: 0 | M58: 0 | N58: 0.550 | O58: 10.000 | P58: 32.500 | Q58: 7.000 | R58: 0.550
E59: Итого | G59: =SUM(G53:G58) -> 20.030 | H59: 15.470 | I59: 85.510 | J59: 566.900 | K59: 0.171 | L59: 4.740 | M59: 2.030 | N59: 1.162 | O59: 177.780 | P59: 222.660 | Q59: 78.00 | R59: 49.678
C60: 6 день
B61: 47/2017 | C61: Салат из квашеной капусты | F61: 60 | G61: 2.600 | H61: 5.058 | I61: 4.944 | J61: 56 | K61: 0.013 | L61: 5.180 | M61: 14.46 | N61: 1.381 | O61: 25.278 | P61: 18.606 | Q61: 8.616 | R61: 0.01
B62: 243/15 | C62: Сосиски отварные | F62: 100 | G62: 7.400 | H62: 10.900 | I62: 0.800 | J62: 108 | K62: 0.030 | L62: 0.000 | M62: 0.000 | N62: 1.000 | O62: 35.000 | P62: 139.000 | Q62: 16.000 | R62: 0.000
B63: 202/2017 | C63: Макароны отварные с маслом | F63: 180/5 | G63: 6.120 | H63: 5.360 | I63: 34.200 | J63: 224.4 | K63: 0.104 | L63: 0.000 | M63: 0.120 | N63: 0.980 | O63: 19.750 | P63: 68.410 | Q63: 10.170 | R63: 1.043
B64: ТТК №1 | C64: Чай полусладкий | F64: 200 | G64: 0.200 | H64: 0.000 | I64: 5.060 | J64: 21.04 | K64: 0.000 | L64: 0.000 | M64: 0.100 | N64: 0.000 | O64: 9.970 | P64: 7.500 | Q64: 6.500 | R64: 0.197
B65: 1/2017 | C65: Хлеб Ржаной | F65: 30 | G65: 1.5 | H65: 0.3 | I65: 13.50 | J65: 66 | K65: 0.021 | L65: 0.00 | M65: 0.00 | N65: 0.162 | O65: 4.14 | P65: 19.10 | Q65: 4.5 | R65: 0.558
B66: 1/2017 | C66: Хлеб Пшеничный | F66: 50 | G66: 3.800 | H66: 0.400 | I66: 24.600 | J66: 118 | K66: 0.055 | L66: 0 | M66: 0 | N66: 0.550 | O66: 10.000 | P66: 32.500 | Q66: 7.000 | R66: 0.550
E67: Итого | G67: =SUM(G61:G66) -> 21.620 | H67: 22.018 | I67: 83.104 | J67: 593.740 | K67: 0.223 | L67: 5.180 | M67: 14.680 | N67: 4.073 | O67: 104.138 | P67: 285.116 | Q67: 52.786 | R67: 2.358
E69: Масса порции, гр | F69: Масса порции, гр | G69: Пищевые вещества (гр) Белки | H69: Пищевые вещества (гр) Жиры | I69: Пищевые вещества (гр) Углеводы | J69: Энерг. ценность (ккал) | K69: Витамины (мг) В1 | L69: Витамины (мг) С | M69: Витамины (мг) А | N69: Витамины (мг) Е | O69: Са, мг | P69: Р, мг | Q69: Mg, мг | R69: Fe, мг
C70: ИТОГО ЗА НЕДЕЛЮ: | G70: =SUM(G22+G30+G40+G50+G59+G67) -> 129.3 | H70: 126.2 | I70: 569.2 | J70: 3834.0 | K70: 8.3 | L70: 112.4 | M70: 37.3 | N70: 19.1 | O70: 852.4 | P70: 1796.6 | Q70: 419.0 | R70: 67.9
C71: В среднем в день: | G71: 21.60 | H71: 21.13 | I71: 95.80 | J71: 640.00 | K71: 1.40 | L71: 19.32 | M71: 6.22 | N71: 3.20 | O71: 160.32 | P71: 299.40 | Q71: 69.52 | R71: 11.22
B73: № рецептуры | C73: Наименование блюд | F73: Выход | G73: Белки, г | H73: Жиры, г | I73: Углеводы, г | J73: Калорийность, | K73: Витамин В1, мг | L73: Витамин С, мг | M73: Витамин А, мг | N73: Витамин Е, мг | O73: Са, мг | P73: Р, мг | Q73: Mg, мг | R73: Fe, мг
C74: 2-ая неделя
C75: 1 день
B76: 75/2017 | C76: Икра морковная | F76: 60 | G76: 1.320 | H76: 1.6 | I76: 6.500 | J76: 56.2 | K76: 0.020 | L76: 3.12 | M76: 0 | N76: 1.367 | O76: 18.4 | P76: 70.5 | Q76: 24.70 | R76: 0.74
B77: ТТК-9 | C77: Фрикадельки "Особые" с соусом томатным П/Ф | F77: 50/50 | G77: 12.540 | H77: 19.040 | I77: 9.930 | J77: 261.21 | K77: 0.010 | L77: 0.110 | M77: 3.330 | N77: 0.110 | O77: 186.250 | P77: 6.200 | Q77: 25.180 | R77: 1.150
B78: 171/2017 | C78: Каша гречневая рассыпчатая | F78: 180 | G78: 7.990 | H78: 10.830 | I78: 41.000 | J78: 204 | K78: 0.350 | L78: 0.000 | M78: 0 | N78: 0.622 | O78: 44.820 | P78: 204.700 | Q78: 53.460 | R78: 1.321
B79: ТТК №1 | C79: Чай полусладкий | F79: 200 | G79: 0.200 | H79: 0.000 | I79: 5.060 | J79: 21.04 | K79: 0.000 | L79: 0.000 | M79: 0.100 | N79: 0.000 | O79: 9.970 | P79: 7.500 | Q79: 6.500 | R79: 0.197
B80: 1/2017 | C80: Хлеб Ржаной | F80: 30 | G80: 1.5 | H80: 0.3 | I80: 13.50 | J80: 66 | K80: 0.021 | L80: 0.00 | M80: 0.00 | N80: 0.162 | O80: 4.14 | P80: 19.10 | Q80: 4.5 | R80: 0.558
B81: 1/2017 | C81: Хлеб Пшеничный | F81: 50 | G81: 3.800 | H81: 0.400 | I81: 24.600 | J81: 118 | K81: 0.055 | L81: 0 | M81: 0 | N81: 0.550 | O81: 10.000 | P81: 32.500 | Q81: 7.000 | R81: 0.550
E82: Итого | G82: =SUM(G76:G81) -> 27.35 | H82: 32.170 | I82: 100.590 | J82: 726.8 | K82: 0.456 | L82: 3.23 | M82: 3.43 | N82: 2.811 | O82: 273.58 | P82: =SUM(P76:P81) -> 340.500 | Q82: =SUM(Q76:Q81) -> 121.340 | R82: =SUM(R76:R81) -> 4.516
C84: 2 день
B85: 23/16 | C85: Салат из картофеля с солеными огурцами | F85: 60 | G85: 0.880 | H85: 5.6 | I85: 6.450 | J85: 80.2 | K85: 0.040 | L85: 7.2 | M85: 0 | N85: 1.64 | O85: 12.8 | P85: 84.6 | Q85: 13.14 | R85: 0.50
B86: 291/2017 | C86: Плов из птицы | F86: 50/150 | G86: 14.510 | H86: 14.710 | I86: 28.340 | J86: 364 | K86: 0.210 | L86: 4.900 | M86: 0.100 | N86: 1.200 | O86: 83.070 | P86: 273.000 | Q86: 40.450 | R86: 1.900
B87: 686/04 | C87: Чай с лимоном (полусладкий) | F87: 200/10/7 | G87: 0.270 | H87: 0.060 | I87: 15.230 | J87: 63 | K87: 0.003 | L87: 2.800 | M87: 0 | N87: 0.014 | O87: 3.250 | P87: 1.540 | Q87: 0.840 | R87: 0.087
B88: 1/2017 | C88: Хлеб Ржаной | F88: 30 | G88: 1.5 | H88: 0.3 | I88: 13.50 | J88: 66 | K88: 0.021 | L88: 0.00 | M88: 0.00 | N88: 0.162 | O88: 4.14 | P88: 19.10 | Q88: 4.5 | R88: 0.558
B89: 1/2017 | C89: Хлеб Пшеничный | F89: 50 | G89: 3.800 | H89: 0.400 | I89: 24.600 | J89: 118 | K89: 0.055 | L89: 0 | M89: 0 | N89: 0.550 | O89: 10.000 | P89: 32.500 | Q89: 7.000 | R89: 0.550
B90: Пром | C90: Печенье сахарное | F90: 48 | G90: 3.700 | H90: 4.600 | I90: 35.600 | J90: 199.60 | K90: 0.050 | L90: 0 | M90: 5.500 | N90: 1.750 | O90: 15.000 | P90: 42.500 | Q90: 9.600 | R90: 1.000
E91: Итого | G91: =SUM(G85:G90) -> 24.66 | H91: 25.67 | I91: 123.72 | J91: 891.1 | K91: 0.379 | L91: 14.9 | M91: 5.6 | N91: 5.316 | O91: 128.26 | P91: 453.24 | Q91: 75.53 | R91: 4.595
C93: 3 день
B94: 47/2017 | C94: Салат из квашеной капусты | F94: 60 | G94: 2.600 | H94: 5.058 | I94: 4.944 | J94: 56 | K94: 0.013 | L94: 5.180 | M94: 14.46 | N94: 1.381 | O94: 25.278 | P94: 18.606 | Q94: 8.616 | R94: 0.01
B95: ТТК № 1026 | C95: Биточки рыбные Морячка | F95: 80 | G95: 12.40 | H95: 5.20 | I95: 6.800 | J95: 123.2 | K95: 0.080 | L95: 1.700 | M95: 0.030 | N95: 0.220 | O95: 18.420 | P95: 135.700 | Q95: 42.400 | R95: 0.800
B96: 312/2017 | C96: Картофельное пюре | F96: 180/5 | G96: 3.710 | H96: 9.940 | I96: 26.400 | J96: 206.4 | K96: 0.197 | L96: 9.530 | M96: 0.096 | N96: 0.280 | O96: 57.370 | P96: 118.600 | Q96: 9.600 | R96: 0.000
B97: ТТК №13 | C97: Чай полусладкий с молоком | F97: 200 | G97: 1.630 | H97: 1.250 | I97: 7.180 | J97: 46 | K97: 0.015 | L97: 0.540 | M97: 0.01 | N97: 0.000 | O97: 76.500 | P97: 48.700 | Q97: 8.800 | R97: 0.430
B98: 1/2017 | C98: Хлеб Ржаной | F98: 30 | G98: 1.5 | H98: 0.3 | I98: 13.50 | J98: 66 | K98: 0.021 | L98: 0.00 | M98: 0.00 | N98: 0.162 | O98: 4.14 | P98: 19.10 | Q98: 4.5 | R98: 0.558
B99: 1/2017 | C99: Хлеб Пшеничный | F99: 50 | G99: 3.800 | H99: 0.400 | I99: 24.600 | J99: 118 | K99: 0.055 | L99: 0 | M99: 0 | N99: 0.550 | O99: 10.000 | P99: 32.500 | Q99: 7.000 | R99: 0.550
E100: Итого | G100: =SUM(G94:G99) -> 25.640 | H100: 22.148 | I100: 83.424 | J100: 615.9 | K100: 0.381 | L100: 16.950 | M100: 14.60 | N100: 2.593 | O100: 191.708 | P100: 373.206 | Q100: 80.916 | R100: 2.35
C102: 4 день
B103: 121/2016 | C103: Винегрет Дары осени | F103: 80 | G103: 1.55 | H103: 5.7 | I103: 6.3 | J103: 82.4 | K103: 0.064 | L103: 14.96 | M103: 0 | N103: 0 | O103: 11.64 | P103: 14.12 | Q103: 6.72 | R103: 0
B104: 102/2017 | C104: Суп картофельный с бобовыми на мясокостном бульене (говьяжий) | F104: 250 | G104: 5.500 | H104: 5.270 | I104: 16.530 | J104: 148.25 | K104: 0.230 | L104: 5.800 | M104: 0.020 | N104: 0.230 | O104: 42.670 | P104: 94.760 | Q104: 35.600 | R104: 2.050
B105: 686/04 | C105: Чай с лимоном (полусладкий) | F105: 200/10/7 | G105: 0.270 | H105: 0.060 | I105: 15.230 | J105: 63 | K105: 0.003 | L105: 2.800 | M105: 0 | N105: 0.014 | O105: 3.250 | P105: 1.540 | Q105: 0.840 | R105: 0.087
B106: 1/2017 | C106: Хлеб Ржаной | F106: 30 | G106: 1.5 | H106: 0.3 | I106: 13.50 | J106: 66 | K106: 0.021 | L106: 0.00 | M106: 0.00 | N106: 0.162 | O106: 4.14 | P106: 19.10 | Q106: 4.5 | R106: 0.558
B107: 1/2017 | C107: Хлеб Пшеничный | F107: 50 | G107: 3.800 | H107: 0.400 | I107: 24.600 | J107: 118 | K107: 0.055 | L107: 0 | M107: 0 | N107: 0.550 | O107: 10.000 | P107: 32.500 | Q107: 7.000 | R107: 0.550
B108: Пром. | C108: Прчники | F108: 34 | G108: 1.870 | H108: 1.360 | I108: 26.860 | J108: 129 | K108: 0.020 | L108: 0 | M108: 0 | N108: 0.000 | O108: 3.060 | P108: 14.000 | Q108: 0.000 | R108: 0.200
E109: Итого | G109: =SUM(G103:G108) -> 14.49 | H109: 13.090 | I109: 103.020 | J109: 606.95 | K109: 0.393 | L109: 23.560 | M109: 0.020 | N109: 0.956 | O109: 74.760 | P109: 176.02 | Q109: 54.660 | R109: 3.445
C111: 5 день
B112: 10/2016 | C112: Салат из зеленого горошка с маслом раст. | F112: 50 | G112: 1.48 | H112: 2.46 | I112: 3.13 | J112: 41.8 | K112: 0.06 | L112: 5.5 | M112: 0.01 | N112: 0.03 | O112: 12.87 | P112: 13.4 | Q112: 12.8 | R112: 0.41
B113: ТТК № 53к | C113: Мякоть птицы тушенная в соусе | F113: 50/50 | G113: 11.650 | H113: 10.756 | I113: 11.632 | J113: 164 | K113: 0.168 | L113: 6.326 | M113: 0.000 | N113: 0.956 | O113: 85.185 | P113: 163.198 | Q113: 15.716 | R113: 1.800
B114: 174/2017 | C114: Каша рисовая вязкая | F114: 180/5 | G114: 2.770 | H114: 5.000 | I114: 27.600 | J114: 166 | K114: 0.020 | L114: 0.000 | M114: 0.000 | N114: 0.220 | O114: 26.310 | P114: 27.600 | Q114: 29.100 | R114: 1.250
B115: ТТК №1 | C115: Чай полусладкий | F115: 200 | G115: 0.200 | H115: 0.000 | I115: 5.060 | J115: 21.04 | K115: 0.000 | L115: 0.000 | M115: 0.100 | N115: 0.000 | O115: 9.970 | P115: 7.500 | Q115: 6.500 | R115: 0.197
B116: 1/2017 | C116: Хлеб Ржаной | F116: 30 | G116: 1.5 | H116: 0.3 | I116: 13.50 | J116: 66 | K116: 0.021 | L116: 0.00 | M116: 0.00 | N116: 0.162 | O116: 4.14 | P116: 19.10 | Q116: 4.5 | R116: 0.558
B117: 1/2017 | C117: Хлеб Пшеничный | F117: 50 | G117: 3.800 | H117: 0.400 | I117: 24.600 | J117: 118 | K117: 0.055 | L117: 0 | M117: 0 | N117: 0.550 | O117: 10.000 | P117: 32.500 | Q117: 7.000 | R117: 0.550
B118: 338/2017 | C118: Яблоко свежее | F118: 100 | G118: 0.400 | H118: 0.400 | I118: 7.350 | J118: 47 | K118: 0.030 | L118: 8 | M118: 0 | N118: 0.100 | O118: 16.000 | P118: 11.000 | Q118: 9.000 | R118: 0.030
E119: Итого | G119: =SUM(G112:G118) -> 21.80 | H119: 19.316 | I119: 92.872 | J119: 624.04 | K119: 0.354 | L119: 19.826 | M119: 0.110 | N119: 2.018 | O119: 164.475 | P119: 274.298 | Q119: 84.616 | R119: 4.795
C120: 6 день
B121: ТТК №65 | C121: Салат "Здоровье" | F121: 60 | G121: 5.340 | H121: 5.4 | I121: 10.800 | J121: 33 | K121: 0.030 | L121: 4.500 | M121: 14.46 | N121: 1.381 | O121: 13.140 | P121: 18.606 | Q121: 10.800 | R121: 0.18
B122: ТТК №22 | C122: Биточки Рябушка п/ф с овощами (мексиканская смесь) | F122: 75/25 | G122: 9.750 | H122: 10.560 | I122: 11.280 | J122: 182.98 | K122: 6.300 | L122: 0.035 | M122: 0.162 | N122: 0.850 | O122: 14.220 | P122: 124.370 | Q122: 26.780 | R122: 1.240
B123: 173/2017 | C123: Каша гречневая вязкая | F123: 180/5 | G123: 7.990 | H123: 10.830 | I123: 41.000 | J123: 204 | K123: 0.350 | L123: 0.000 | M123: 0 | N123: 0.621 | O123: 44.800 | P123: 204.700 | Q123: 53.500 | R123: 1.321
B124: 686/04 | C124: Чай с лимоном (полусладкий) | F124: 200/10/7 | G124: 0.270 | H124: 0.060 | I124: 15.230 | J124: 63 | K124: 0.003 | L124: 2.800 | M124: 0 | N124: 0.014 | O124: 3.250 | P124: 1.540 | Q124: 0.840 | R124: 0.087
B125: 1/2017 | C125: Хлеб Ржаной | F125: 30 | G125: 1.5 | H125: 0.3 | I125: 13.50 | J125: 66 | K125: 0.021 | L125: 0.00 | M125: 0.00 | N125: 0.162 | O125: 4.14 | P125: 19.10 | Q125: 4.5 | R125: 0.558
B126: 1/2017 | C126: Хлеб Пшеничный | F126: 50 | G126: 3.800 | H126: 0.400 | I126: 24.600 | J126: 118 | K126: 0.055 | L126: 0 | M126: 0 | N126: 0.550 | O126: 10.000 | P126: 32.500 | Q126: 7.000 | R126: 0.550
E127: Итого | G127: =SUM(G121:G126) -> 28.650 | H127: 27.550 | I127: 116.410 | J127: 667.28 | K127: 6.759 | L127: 7.335 | M127: 14.622 | N127: 3.578 | O127: 89.550 | P127: 400.816 | Q127: 103.420 | R127: 3.936
E129: Масса порции, гр | F129: Масса порции, гр | G129: Пищевые вещества (гр) Белки | H129: Пищевые вещества (гр) Жиры | I129: Пищевые вещества (гр) Углеводы | J129: Энерг. ценность (ккал) | K129: Витамины (мг) В1 | L129: Витамины (мг) С | M129: Витамины (мг) А | N129: Витамины (мг) Е | O129: Са, мг | P129: Р, мг | Q129: Mg, мг | R129: Fe, мг
C130: ИТОГО ЗА НЕДЕЛЮ: | G130: =SUM(G82+G91+G100+G109+G119+G127) -> 142.6 | H130: 139.9 | I130: 620.0 | J130: 4132.0 | K130: 8.7 | L130: 85.8 | M130: 38.4 | N130: 17.3 | O130: 922.3 | P130: 2018.1 | Q130: 520.5 | R130: 23.6
C131: В среднем в день: | G131: 23.80 | H131: 23.00 | I131: 104.20 | J131: 684.62 | K131: 1.45 | L131: 14.40 | M131: 6.40 | N131: 2.90 | O131: 171.80 | P131: 336.35 | Q131: 86.65 | R131: 3.90
B133: Примечание: при составлении меню использованы
B134: 1. СанПиН 2.3/2.4.3590-20 "Санитарно-эпидемиологические требования к организации общественного питания населения"
B135: 2. Сборник технических нормативов. Сборник рецептур блюд и кулинарных изделий для предприятий общественного питания при общеобразовательных школах. Под общей редакцией
B136: В.Т. Лапшиной, 2004 г. гор.Москва
B137: 3. Сборник технических нормативов –Сборник рецептур блюд и кулинарных изделий для питания детей в дошкольных организациях / под ред. М.П. Могильного и Т.В. Тутельяна. –М.: ДеЛи принт, 2017 г.
B138: 4. Сборник технических нормативов –Сборник рецептур блюд и кулинарных изделий для питания детей в дошкольных организациях / под ред. М.П. Могильного и Т.В. Тутельяна. –М.: ДеЛи принт, 2016 г.
B139: 5. Сборник технических нормативов –Сборник рецептур блюд и кулинарных изделий для питания детей в дошкольных организациях / под ред. М.П. Могильного и Т.В. Тутельяна. –М.: ДеЛи принт, 2015 г.
B140: 6. Технико-технологические карты разработанные ООО "Школьное питание"
B142: конт.тел.:8(8552) 707107
